[Event "Titled Tuesday Blitz March 14 Late 2023"]
[White "Osmak, Yuliia"]
[Black "Daneshvar, Bardiya"]
[WhiteFideId "14101602"]
[BlackFideId "12576468"]
[WhiteElo "2271"]
[BlackElo "2468"]
[Result "0-1"]
[Round "01"]
[TimeControl "180+1"]
[Date "2023.03.14"]
[WhiteClock "0:00:10"]
[BlackClock "0:00:08"]

1. d4 {[%clk 0:02:57]}  b6 {[%clk 0:03:00]} 2. e4 {[%clk 0:02:56]}  Bb7 {[%clk 0:03:00]} 3. Bd3 {[%clk 0:02:57]}  Nf6 {[%clk 0:02:59]} 4. Qe2 {[%clk 0:02:47]}  Nc6 {[%clk 0:02:59]} 5. Nf3 {[%clk 0:02:46]}  Nb4 {[%clk 0:02:58]} 6. Nc3 {[%clk 0:02:42]}  Nxd3+ {[%clk 0:02:57]} 7. Qxd3 {[%clk 0:02:43]}  e6 {[%clk 0:02:57]} 8. O-O {[%clk 0:02:43]}  Be7 {[%clk 0:02:56]} 9. Bg5 {[%clk 0:02:39]}  h6 {[%clk 0:02:56]} 10. Bh4 {[%clk 0:02:38]}  O-O {[%clk 0:02:56]} 11. Rfe1 {[%clk 0:02:36]}  d5 {[%clk 0:02:56]} 12. e5 {[%clk 0:02:35]}  Ne4 {[%clk 0:02:56]} 13. Bxe7 {[%clk 0:02:34]}  Qxe7 {[%clk 0:02:57]} 14. Nd2 {[%clk 0:02:27]}  Ba6 {[%clk 0:02:37]} 15. Qxa6 {[%clk 0:02:15]}  Nxd2 {[%clk 0:02:36]} 16. Rad1 {[%clk 0:02:09]}  Nc4 {[%clk 0:02:34]} 17. b3 {[%clk 0:02:09]}  Na5 {[%clk 0:02:26]} 18. Ne2 {[%clk 0:01:44]}  c5 {[%clk 0:02:14]} 19. c3 {[%clk 0:01:41]}  Qb7 {[%clk 0:02:09]} 20. Qd3 {[%clk 0:01:32]}  c4 {[%clk 0:02:08]} 21. Qc2 {[%clk 0:01:31]}  Qe7 {[%clk 0:02:01]} 22. b4 {[%clk 0:01:28]}  Nc6 {[%clk 0:02:01]} 23. a4 {[%clk 0:01:28]}  f5 {[%clk 0:01:53]} 24. exf6 {[%clk 0:01:26]}  Qxf6 {[%clk 0:01:53]} 25. Ng3 {[%clk 0:01:21]}  Rae8 {[%clk 0:01:51]} 26. Re2 {[%clk 0:01:13]}  e5 {[%clk 0:01:44]} 27. dxe5 {[%clk 0:01:07]}  Nxe5 {[%clk 0:01:45]} 28. Rxd5 {[%clk 0:00:59]}  Nd3 {[%clk 0:01:43]} 29. Ne4 {[%clk 0:00:54]}  Rxe4 {[%clk 0:01:15]} 30. Rxe4 {[%clk 0:00:55]}  Nxf2 {[%clk 0:01:15]} 31. Re1 {[%clk 0:00:48]}  Nd3 {[%clk 0:01:14]} 32. Rd1 {[%clk 0:00:44]}  Nf2 {[%clk 0:00:49]} 33. Rb1 {[%clk 0:00:34]}  Qe6 {[%clk 0:00:41]} 34. Rd2 {[%clk 0:00:28]}  Nd3 {[%clk 0:00:33]} 35. Re2 {[%clk 0:00:19]}  Qd5 {[%clk 0:00:25]} 36. h3 {[%clk 0:00:18]}  a5 {[%clk 0:00:24]} 37. b5 {[%clk 0:00:18]}  Qc5+ {[%clk 0:00:18]} 38. Kh1 {[%clk 0:00:17]}  Nf2+ {[%clk 0:00:16]} 39. Kh2 {[%clk 0:00:18]}  Qd6+ {[%clk 0:00:13]} 40. Kg1 {[%clk 0:00:18]}  Nd3 {[%clk 0:00:10]} 41. Kh1 {[%clk 0:00:16]}  Qg3 {[%clk 0:00:08]} 42. Rg1 {[%clk 0:00:15]}  Rf2 {[%clk 0:00:05]} 43. Rxf2 {[%clk 0:00:16]}  Nxf2+ {[%clk 0:00:05]} 44. Qxf2 {[%clk 0:00:14]}  Qxf2 {[%clk 0:00:06]} 45. Rd1 {[%clk 0:00:12]}  Qc2 {[%clk 0:00:06]} 46. Rd8+ {[%clk 0:00:11]}  Kh7 {[%clk 0:00:06]} 47. Rd6 {[%clk 0:00:11]}  Qxc3 {[%clk 0:00:07]} 48. Rxb6 {[%clk 0:00:12]}  Qe1+ {[%clk 0:00:07]} 49. Kh2 {[%clk 0:00:12]}  Qe5+ {[%clk 0:00:08]} 50. Kh1 {[%clk 0:00:12]}  Qa1+ {[%clk 0:00:06]} 51. Kh2 {[%clk 0:00:12]}  Qxa4 {[%clk 0:00:07]} 52. Rb8 {[%clk 0:00:10]}  c3 {[%clk 0:00:08]} 53. b6 {[%clk 0:00:10]}  Qf4+ {[%clk 0:00:08]} 0-1


[Site "https://www.chess.com"]

[Event "Titled Tuesday Blitz March 14 Late 2023"]
[White "Ozen, Bahadir"]
[Black "Goncalves, Davi Sulzbacher"]
[WhiteFideId "6337058"]
[BlackFideId "2154510"]
[WhiteElo "2503"]
[BlackElo "2182"]
[Result "1-0"]
[Round "01"]
[TimeControl "180+1"]
[Date "2023.03.14"]
[WhiteClock "0:01:35"]
[BlackClock "0:00:01"]

1. d4 {[%clk 0:03:00]}  Nf6 {[%clk 0:02:59]} 2. Nf3 {[%clk 0:03:01]}  g6 {[%clk 0:02:57]} 3. e3 {[%clk 0:03:01]}  Bg7 {[%clk 0:02:58]} 4. Be2 {[%clk 0:03:02]}  O-O {[%clk 0:02:58]} 5. O-O {[%clk 0:03:03]}  b6 {[%clk 0:02:57]} 6. c4 {[%clk 0:03:02]}  Bb7 {[%clk 0:02:55]} 7. b3 {[%clk 0:03:02]}  d5 {[%clk 0:02:53]} 8. Bb2 {[%clk 0:02:56]}  a5 {[%clk 0:02:51]} 9. Nbd2 {[%clk 0:02:56]}  a4 {[%clk 0:02:44]} 10. bxa4 {[%clk 0:02:51]}  Qe8 {[%clk 0:02:44]} 11. cxd5 {[%clk 0:02:48]}  Bxd5 {[%clk 0:02:20]} 12. Bb5 {[%clk 0:02:47]}  c6 {[%clk 0:02:20]} 13. Bd3 {[%clk 0:02:48]}  c5 {[%clk 0:02:18]} 14. Bb5 {[%clk 0:02:47]}  Bc6 {[%clk 0:02:17]} 15. Qb3 {[%clk 0:02:48]}  Na6 {[%clk 0:01:49]} 16. Ne5 {[%clk 0:02:39]}  Bd5 {[%clk 0:01:27]} 17. Bxe8 {[%clk 0:02:35]}  Bxb3 {[%clk 0:01:26]} 18. Bc6 {[%clk 0:02:35]}  Be6 {[%clk 0:01:06]} 19. Bxa8 {[%clk 0:02:35]}  Rxa8 {[%clk 0:01:07]} 20. Ndc4 {[%clk 0:02:31]}  Nd5 {[%clk 0:00:48]} 21. Rfd1 {[%clk 0:02:12]}  Nab4 {[%clk 0:00:34]} 22. a3 {[%clk 0:02:10]}  Bxe5 {[%clk 0:00:20]} 23. Nxe5 {[%clk 0:01:59]}  Na6 {[%clk 0:00:17]} 24. Rac1 {[%clk 0:01:58]}  f6 {[%clk 0:00:13]} 25. Nc4 {[%clk 0:01:59]}  Nac7 {[%clk 0:00:12]} 26. a5 {[%clk 0:01:49]}  b5 {[%clk 0:00:10]} 27. Nb6 {[%clk 0:01:49]}  Rxa5 {[%clk 0:00:09]} 28. Nxd5 {[%clk 0:01:49]}  Nxd5 {[%clk 0:00:10]} 29. dxc5 {[%clk 0:01:49]}  Kf7 {[%clk 0:00:08]} 30. c6 {[%clk 0:01:49]}  Ra7 {[%clk 0:00:07]} 31. e4 {[%clk 0:01:49]}  Nc7 {[%clk 0:00:07]} 32. f3 {[%clk 0:01:47]}  Ke8 {[%clk 0:00:07]} 33. Kf2 {[%clk 0:01:47]}  Ra6 {[%clk 0:00:06]} 34. Ke3 {[%clk 0:01:47]}  Bc4 {[%clk 0:00:06]} 35. h4 {[%clk 0:01:38]}  Ne6 {[%clk 0:00:05]} 36. h5 {[%clk 0:01:39]}  gxh5 {[%clk 0:00:05]} 37. Rh1 {[%clk 0:01:37]}  Ng7 {[%clk 0:00:03]} 38. c7 {[%clk 0:01:35]}  Rc6 {[%clk 0:00:04]} 39. a4 {[%clk 0:01:36]}  Rxc7 {[%clk 0:00:04]} 40. axb5 {[%clk 0:01:36]}  Rc8 {[%clk 0:00:03]} 41. b6 {[%clk 0:01:36]}  Ba6 {[%clk 0:00:02]} 42. Rxc8+ {[%clk 0:01:37]}  Bxc8 {[%clk 0:00:03]} 43. Rc1 {[%clk 0:01:38]}  Kd8 {[%clk 0:00:03]} 44. Rd1+ {[%clk 0:01:34]}  Ke8 {[%clk 0:00:03]} 45. Ba3 {[%clk 0:01:35]}  Ne6 {[%clk 0:00:03]} 46. Rh1 {[%clk 0:01:34]}  Ng7 {[%clk 0:00:02]} 47. Rc1 {[%clk 0:01:35]}  Kd8 {[%clk 0:00:02]} 48. Rc7 {[%clk 0:01:35]}  Bd7 {[%clk 0:00:01]} 49. Ra7 {[%clk 0:01:34]}  Ne6 {[%clk 0:00:01]} 50. Ra8+ {[%clk 0:01:34]}  Bc8 {[%clk 0:00:01]} 51. b7 {[%clk 0:01:35]} 1-0


[Site "https://www.chess.com"]

[Event "Titled Tuesday Blitz March 14 Late 2023"]
[White "Peatman, Carter"]
[Black "Adewumi, Tanitoluwa"]
[WhiteFideId "2096480"]
[BlackFideId "30966396"]
[WhiteElo "2003"]
[BlackElo "2801"]
[Result "0-1"]
[Round "01"]
[TimeControl "180+1"]
[Date "2023.03.14"]
[WhiteClock "0:00:07"]
[BlackClock "0:00:14"]

1. d4 {[%clk 0:02:58]}  Nf6 {[%clk 0:02:58]} 2. Bf4 {[%clk 0:02:57]}  e6 {[%clk 0:02:57]} 3. e3 {[%clk 0:02:57]}  b6 {[%clk 0:02:57]} 4. Nf3 {[%clk 0:02:56]}  Bb7 {[%clk 0:02:58]} 5. h3 {[%clk 0:02:56]}  c5 {[%clk 0:02:57]} 6. c3 {[%clk 0:02:54]}  Nc6 {[%clk 0:02:57]} 7. Nbd2 {[%clk 0:02:47]}  d5 {[%clk 0:02:57]} 8. Ne5 {[%clk 0:02:38]}  Bd6 {[%clk 0:02:38]} 9. Ndf3 {[%clk 0:02:34]}  O-O {[%clk 0:02:35]} 10. Bd3 {[%clk 0:02:33]}  Ne4 {[%clk 0:02:33]} 11. O-O {[%clk 0:02:30]}  Nxe5 {[%clk 0:02:22]} 12. Bxe5 {[%clk 0:02:17]}  Bxe5 {[%clk 0:02:17]} 13. Nxe5 {[%clk 0:02:15]}  f6 {[%clk 0:02:15]} 14. Nf3 {[%clk 0:02:14]}  Re8 {[%clk 0:02:14]} 15. Qc2 {[%clk 0:01:59]}  Rc8 {[%clk 0:02:11]} 16. Rfd1 {[%clk 0:01:51]}  Qc7 {[%clk 0:02:05]} 17. a4 {[%clk 0:01:43]}  a5 {[%clk 0:02:01]} 18. Nd2 {[%clk 0:01:30]}  Nxd2 {[%clk 0:01:48]} 19. Rxd2 {[%clk 0:01:28]}  g6 {[%clk 0:01:42]} 20. Rad1 {[%clk 0:01:24]}  e5 {[%clk 0:01:39]} 21. Bb5 {[%clk 0:01:19]}  Red8 {[%clk 0:01:32]} 22. dxe5 {[%clk 0:01:18]}  fxe5 {[%clk 0:01:27]} 23. Qd3 {[%clk 0:01:02]}  Kg7 {[%clk 0:01:24]} 24. Qe2 {[%clk 0:01:02]}  Qe7 {[%clk 0:01:19]} 25. Qg4 {[%clk 0:01:02]}  Qf6 {[%clk 0:01:16]} 26. h4 {[%clk 0:00:50]}  Rc7 {[%clk 0:01:01]} 27. h5 {[%clk 0:00:37]}  Qf5 {[%clk 0:01:01]} 28. Qxf5 {[%clk 0:00:33]}  gxf5 {[%clk 0:01:02]} 29. f3 {[%clk 0:00:31]}  Kf6 {[%clk 0:00:59]} 30. Kf2 {[%clk 0:00:32]}  Rg7 {[%clk 0:00:47]} 31. Rh1 {[%clk 0:00:31]}  h6 {[%clk 0:00:47]} 32. Be2 {[%clk 0:00:30]}  Rdg8 {[%clk 0:00:41]} 33. Bf1 {[%clk 0:00:27]}  Rg5 {[%clk 0:00:32]} 34. Rd1 {[%clk 0:00:27]}  Bc6 {[%clk 0:00:30]} 35. b3 {[%clk 0:00:26]}  f4 {[%clk 0:00:28]} 36. e4 {[%clk 0:00:24]}  d4 {[%clk 0:00:28]} 37. cxd4 {[%clk 0:00:24]}  cxd4 {[%clk 0:00:27]} 38. Rh2 {[%clk 0:00:24]}  Be8 {[%clk 0:00:25]} 39. Rc1 {[%clk 0:00:21]}  Bd7 {[%clk 0:00:22]} 40. Rc7 {[%clk 0:00:21]}  Ke7 {[%clk 0:00:20]} 41. Bb5 {[%clk 0:00:19]}  Rd8 {[%clk 0:00:21]} 42. Rh1 {[%clk 0:00:19]}  Kd6 {[%clk 0:00:18]} 43. Rb7 {[%clk 0:00:16]}  Bxb5 {[%clk 0:00:17]} 44. axb5 {[%clk 0:00:17]}  Kc5 {[%clk 0:00:16]} 45. Rh7 {[%clk 0:00:06]}  Rd6 {[%clk 0:00:15]} 46. Rxh6 {[%clk 0:00:07]}  Rxh6 {[%clk 0:00:14]} 0-1


[Site "https://www.chess.com"]

[Event "Titled Tuesday Blitz March 14 Late 2023"]
[White "Perez Rodriguez, Jennifer"]
[Black "Oro, Faustino"]
[WhiteFideId "3507831"]
[BlackFideId "20000197"]
[WhiteElo "2170"]
[BlackElo "1984"]
[Result "0-1"]
[Round "01"]
[TimeControl "180+1"]
[Date "2023.03.14"]
[WhiteClock "0:00:14"]
[BlackClock "0:00:43"]

1. e4 {[%clk 0:02:58]}  e5 {[%clk 0:02:58]} 2. Nf3 {[%clk 0:02:57]}  Nc6 {[%clk 0:02:57]} 3. Bb5 {[%clk 0:02:58]}  a6 {[%clk 0:02:55]} 4. Ba4 {[%clk 0:02:57]}  Nf6 {[%clk 0:02:55]} 5. d3 {[%clk 0:02:58]}  b5 {[%clk 0:02:53]} 6. Bb3 {[%clk 0:02:57]}  Be7 {[%clk 0:02:54]} 7. Nc3 {[%clk 0:02:57]}  O-O {[%clk 0:02:50]} 8. Nd5 {[%clk 0:02:56]}  d6 {[%clk 0:02:48]} 9. c3 {[%clk 0:02:53]}  Be6 {[%clk 0:02:41]} 10. O-O {[%clk 0:02:50]}  Na5 {[%clk 0:02:32]} 11. Nxe7+ {[%clk 0:02:41]}  Qxe7 {[%clk 0:02:31]} 12. Bc2 {[%clk 0:02:38]}  Bg4 {[%clk 0:02:18]} 13. h3 {[%clk 0:02:37]}  Bh5 {[%clk 0:02:17]} 14. Bg5 {[%clk 0:02:31]}  h6 {[%clk 0:02:15]} 15. Bxf6 {[%clk 0:02:28]}  Qxf6 {[%clk 0:02:15]} 16. g4 {[%clk 0:02:28]}  Bg6 {[%clk 0:02:15]} 17. b4 {[%clk 0:02:26]}  Nc6 {[%clk 0:02:15]} 18. a4 {[%clk 0:02:12]}  Ne7 {[%clk 0:02:11]} 19. Bb3 {[%clk 0:02:05]}  Bh7 {[%clk 0:02:08]} 20. Nh2 {[%clk 0:01:48]}  Ng6 {[%clk 0:01:55]} 21. Qf3 {[%clk 0:01:48]}  Nf4 {[%clk 0:01:55]} 22. Rfe1 {[%clk 0:01:36]}  Kh8 {[%clk 0:01:25]} 23. a5 {[%clk 0:01:21]}  c5 {[%clk 0:01:19]} 24. Rad1 {[%clk 0:01:12]}  Rfc8 {[%clk 0:01:07]} 25. Rc1 {[%clk 0:01:01]}  Qg5 {[%clk 0:01:04]} 26. Rc2 {[%clk 0:00:53]}  cxb4 {[%clk 0:00:56]} 27. cxb4 {[%clk 0:00:52]}  Rxc2 {[%clk 0:00:56]} 28. Bxc2 {[%clk 0:00:52]}  Rc8 {[%clk 0:00:57]} 29. Bb3 {[%clk 0:00:50]}  Bg6 {[%clk 0:00:46]} 30. Rd1 {[%clk 0:00:25]}  Rc3 {[%clk 0:00:44]} 31. Ba2 {[%clk 0:00:23]}  Qh4 {[%clk 0:00:43]} 32. Qg3 {[%clk 0:00:14]}  Ne2+ {[%clk 0:00:43]} 0-1


[Site "https://www.chess.com"]

[Event "Titled Tuesday Blitz March 14 Late 2023"]
[White "Poltorak, Sebastian"]
[Black "Fedoseev, Vladimir"]
[WhiteFideId "1199498"]
[BlackFideId "24130737"]
[WhiteElo "2195"]
[BlackElo "2752"]
[Result "0-1"]
[Round "01"]
[TimeControl "180+1"]
[Date "2023.03.14"]
[WhiteClock "0:00:19"]
[BlackClock "0:00:27"]

1. e4 {[%clk 0:03:00]}  c6 {[%clk 0:02:02]} 2. Nc3 {[%clk 0:03:00]}  d5 {[%clk 0:02:02]} 3. Nf3 {[%clk 0:03:01]}  Bg4 {[%clk 0:02:01]} 4. h3 {[%clk 0:03:01]}  Bxf3 {[%clk 0:02:01]} 5. Qxf3 {[%clk 0:03:02]}  e6 {[%clk 0:02:01]} 6. Be2 {[%clk 0:03:02]}  g6 {[%clk 0:01:59]} 7. h4 {[%clk 0:02:50]}  h5 {[%clk 0:01:56]} 8. g4 {[%clk 0:02:34]}  hxg4 {[%clk 0:01:55]} 9. Qxg4 {[%clk 0:02:32]}  Nf6 {[%clk 0:01:55]} 10. Qg2 {[%clk 0:02:26]}  Nbd7 {[%clk 0:01:45]} 11. d3 {[%clk 0:02:25]}  Bb4 {[%clk 0:01:43]} 12. Bd2 {[%clk 0:02:19]}  d4 {[%clk 0:01:39]} 13. Nb1 {[%clk 0:02:18]}  Qb6 {[%clk 0:01:25]} 14. c3 {[%clk 0:01:32]}  Bc5 {[%clk 0:01:24]} 15. b3 {[%clk 0:01:29]}  dxc3 {[%clk 0:01:24]} 16. Bxc3 {[%clk 0:01:26]}  Bd4 {[%clk 0:01:24]} 17. Qg5 {[%clk 0:01:17]}  Bxf2+ {[%clk 0:01:18]} 18. Kd1 {[%clk 0:01:14]}  Be3 {[%clk 0:01:16]} 19. Qg3 {[%clk 0:01:13]}  Bd4 {[%clk 0:01:15]} 20. Rf1 {[%clk 0:01:11]}  O-O-O {[%clk 0:01:07]} 21. Qg5 {[%clk 0:01:10]}  Nh7 {[%clk 0:00:46]} 22. Qg3 {[%clk 0:01:04]}  Ne5 {[%clk 0:00:45]} 23. Kc2 {[%clk 0:01:03]}  f5 {[%clk 0:00:44]} 24. exf5 {[%clk 0:01:00]}  gxf5 {[%clk 0:00:44]} 25. Bxd4 {[%clk 0:00:46]}  Qxd4 {[%clk 0:00:43]} 26. Nc3 {[%clk 0:00:47]}  Nf6 {[%clk 0:00:43]} 27. Qf4 {[%clk 0:00:41]}  Qxf4 {[%clk 0:00:34]} 28. Rxf4 {[%clk 0:00:42]}  Ng6 {[%clk 0:00:34]} 29. Ra4 {[%clk 0:00:36]}  Rxh4 {[%clk 0:00:34]} 30. Rxa7 {[%clk 0:00:32]}  Kb8 {[%clk 0:00:35]} 31. Ra5 {[%clk 0:00:33]}  Rh2 {[%clk 0:00:35]} 32. Rg1 {[%clk 0:00:32]}  Nf4 {[%clk 0:00:35]} 33. Kd1 {[%clk 0:00:29]}  Ne4 {[%clk 0:00:28]} 34. Nxe4 {[%clk 0:00:23]}  Nxe2 {[%clk 0:00:28]} 35. Re1 {[%clk 0:00:21]}  Rxd3+ {[%clk 0:00:27]} 36. Kc2 {[%clk 0:00:19]}  fxe4 {[%clk 0:00:27]} 0-1


[Site "https://www.chess.com"]

[Event "Titled Tuesday Blitz March 14 Late 2023"]
[White "Pranav, V"]
[Black "Sonnenschein, Philipp"]
[WhiteFideId "25060783"]
[BlackFideId "16250877"]
[WhiteElo "2500"]
[BlackElo "2224"]
[Result "1-0"]
[Round "01"]
[TimeControl "180+1"]
[Date "2023.03.14"]
[WhiteClock "0:00:05"]
[BlackClock "0:00:08"]

1. e4 {[%clk 0:03:00]}  c6 {[%clk 0:03:00]} 2. Nf3 {[%clk 0:02:59]}  d5 {[%clk 0:03:00]} 3. Nc3 {[%clk 0:03:00]}  Bg4 {[%clk 0:03:00]} 4. h3 {[%clk 0:03:00]}  Bxf3 {[%clk 0:03:00]} 5. Qxf3 {[%clk 0:03:01]}  e6 {[%clk 0:03:01]} 6. d3 {[%clk 0:03:01]}  Nd7 {[%clk 0:03:00]} 7. Bd2 {[%clk 0:03:01]}  Bc5 {[%clk 0:02:56]} 8. Qg3 {[%clk 0:03:00]}  Qf6 {[%clk 0:02:47]} 9. Be2 {[%clk 0:02:57]}  Ne7 {[%clk 0:02:46]} 10. Rf1 {[%clk 0:02:44]}  Ng6 {[%clk 0:02:43]} 11. f4 {[%clk 0:02:39]}  O-O {[%clk 0:02:32]} 12. O-O-O {[%clk 0:02:33]}  Qe7 {[%clk 0:02:08]} 13. f5 {[%clk 0:02:24]}  exf5 {[%clk 0:02:08]} 14. exf5 {[%clk 0:02:25]}  Nge5 {[%clk 0:02:09]} 15. Bh6 {[%clk 0:02:24]}  f6 {[%clk 0:02:09]} 16. d4 {[%clk 0:02:24]}  Bd6 {[%clk 0:01:37]} 17. dxe5 {[%clk 0:02:24]}  Bxe5 {[%clk 0:01:38]} 18. Qg4 {[%clk 0:02:24]}  Bxc3 {[%clk 0:01:29]} 19. bxc3 {[%clk 0:02:23]}  Ne5 {[%clk 0:01:30]} 20. Qg3 {[%clk 0:02:22]}  Qa3+ {[%clk 0:01:24]} 21. Kd2 {[%clk 0:02:21]}  Rf7 {[%clk 0:01:24]} 22. Bf4 {[%clk 0:02:18]}  Nc4+ {[%clk 0:01:12]} 23. Bxc4 {[%clk 0:02:17]}  dxc4 {[%clk 0:01:13]} 24. Ke2 {[%clk 0:02:10]}  Qc5 {[%clk 0:01:11]} 25. Be3 {[%clk 0:02:04]}  Qa5 {[%clk 0:01:08]} 26. Rd2 {[%clk 0:01:45]}  Re8 {[%clk 0:01:06]} 27. Kf2 {[%clk 0:01:28]}  Qxc3 {[%clk 0:01:03]} 28. Bf4 {[%clk 0:01:27]}  Qb4 {[%clk 0:01:00]} 29. Kg1 {[%clk 0:01:24]}  Rfe7 {[%clk 0:00:52]} 30. Kh2 {[%clk 0:01:17]}  Qb5 {[%clk 0:00:51]} 31. Bd6 {[%clk 0:01:05]}  Re3 {[%clk 0:00:48]} 32. Qf2 {[%clk 0:01:05]}  c3 {[%clk 0:00:46]} 33. Rdd1 {[%clk 0:00:58]}  Re2 {[%clk 0:00:44]} 34. Qg3 {[%clk 0:00:57]}  Rxc2 {[%clk 0:00:41]} 35. Bc7 {[%clk 0:00:40]}  Ree2 {[%clk 0:00:31]} 36. Rg1 {[%clk 0:00:34]}  Rcd2 {[%clk 0:00:29]} 37. Qxc3 {[%clk 0:00:30]}  Qd5 {[%clk 0:00:17]} 38. Rxd2 {[%clk 0:00:19]}  Rxd2 {[%clk 0:00:18]} 39. Qb4 {[%clk 0:00:10]}  h5 {[%clk 0:00:15]} 40. Bg3 {[%clk 0:00:07]}  h4 {[%clk 0:00:13]} 41. Qxh4 {[%clk 0:00:06]}  Rd4 {[%clk 0:00:13]} 42. Qh5 {[%clk 0:00:06]}  Qe4 {[%clk 0:00:13]} 43. Re1 {[%clk 0:00:05]}  Qd5 {[%clk 0:00:08]} 44. Re8# {[%clk 0:00:05]} 1-0


[Site "https://www.chess.com"]

[Event "Titled Tuesday Blitz March 14 Late 2023"]
[White "Quinones Garcia, Santiago"]
[Black "Rustemov, Alexander"]
[WhiteFideId "4408497"]
[BlackFideId "4119002"]
[WhiteElo "2263"]
[BlackElo "2937"]
[Result "0-1"]
[Round "01"]
[TimeControl "180+1"]
[Date "2023.03.14"]
[WhiteClock "0:00:04"]
[BlackClock "0:01:17"]

1. d4 {[%clk 0:03:00]}  d5 {[%clk 0:02:59]} 2. c4 {[%clk 0:03:01]}  c6 {[%clk 0:02:58]} 3. Nf3 {[%clk 0:03:01]}  Nf6 {[%clk 0:02:58]} 4. e3 {[%clk 0:03:01]}  Bf5 {[%clk 0:02:56]} 5. Nc3 {[%clk 0:02:58]}  e6 {[%clk 0:02:54]} 6. Nh4 {[%clk 0:02:58]}  Be4 {[%clk 0:02:51]} 7. f3 {[%clk 0:02:54]}  Bg6 {[%clk 0:02:50]} 8. Nxg6 {[%clk 0:02:54]}  hxg6 {[%clk 0:02:51]} 9. Qb3 {[%clk 0:02:53]}  Qc7 {[%clk 0:02:46]} 10. g3 {[%clk 0:02:48]}  Nbd7 {[%clk 0:02:44]} 11. Bd2 {[%clk 0:02:46]}  Nb6 {[%clk 0:02:43]} 12. cxd5 {[%clk 0:02:43]}  exd5 {[%clk 0:02:41]} 13. O-O-O {[%clk 0:02:41]}  O-O-O {[%clk 0:02:38]} 14. Kb1 {[%clk 0:02:40]}  Kb8 {[%clk 0:02:38]} 15. Bg2 {[%clk 0:02:40]}  Nc4 {[%clk 0:02:30]} 16. Bc1 {[%clk 0:02:40]}  Qa5 {[%clk 0:02:12]} 17. e4 {[%clk 0:02:36]}  Bb4 {[%clk 0:02:10]} 18. Bf1 {[%clk 0:02:20]}  Bxc3 {[%clk 0:02:05]} 19. Qxc3 {[%clk 0:02:10]}  Qxc3 {[%clk 0:02:04]} 20. bxc3 {[%clk 0:02:11]}  b5 {[%clk 0:01:59]} 21. Bxc4 {[%clk 0:01:59]}  bxc4 {[%clk 0:01:57]} 22. h4 {[%clk 0:01:56]}  dxe4 {[%clk 0:01:55]} 23. Bf4+ {[%clk 0:01:56]}  Kb7 {[%clk 0:01:50]} 24. Kc2 {[%clk 0:01:54]}  exf3 {[%clk 0:01:48]} 25. Rhf1 {[%clk 0:01:53]}  Nd5 {[%clk 0:01:44]} 26. Rb1+ {[%clk 0:01:47]}  Ka8 {[%clk 0:01:42]} 27. Rxf3 {[%clk 0:01:46]}  Rhe8 {[%clk 0:01:42]} 28. Kd2 {[%clk 0:01:24]}  f6 {[%clk 0:01:42]} 29. Rff1 {[%clk 0:01:09]}  Rd7 {[%clk 0:01:43]} 30. Rb2 {[%clk 0:01:01]}  Rb7 {[%clk 0:01:42]} 31. Rxb7 {[%clk 0:00:57]}  Kxb7 {[%clk 0:01:43]} 32. Rb1+ {[%clk 0:00:57]}  Ka6 {[%clk 0:01:43]} 33. Rf1 {[%clk 0:00:53]}  Re4 {[%clk 0:01:41]} 34. Rf2 {[%clk 0:00:44]}  Kb5 {[%clk 0:01:41]} 35. Rf1 {[%clk 0:00:44]}  Ka4 {[%clk 0:01:41]} 36. Rf2 {[%clk 0:00:41]}  a5 {[%clk 0:01:41]} 37. Rf1 {[%clk 0:00:40]}  Ka3 {[%clk 0:01:41]} 38. Bd6+ {[%clk 0:00:32]}  Kxa2 {[%clk 0:01:41]} 39. Rc1 {[%clk 0:00:32]}  a4 {[%clk 0:01:35]} 40. Rc2+ {[%clk 0:00:32]}  Kb3 {[%clk 0:01:35]} 41. Rc1 {[%clk 0:00:29]}  Re6 {[%clk 0:01:26]} 42. Bc5 {[%clk 0:00:18]}  Re3 {[%clk 0:01:26]} 43. Rb1+ {[%clk 0:00:12]}  Ka2 {[%clk 0:01:26]} 44. Rg1 {[%clk 0:00:05]}  Rd3+ {[%clk 0:01:26]} 45. Ke2 {[%clk 0:00:02]}  Nxc3+ {[%clk 0:01:26]} 46. Kf2 {[%clk 0:00:03]}  a3 {[%clk 0:01:18]} 47. Rg2 {[%clk 0:00:02]}  Rd2+ {[%clk 0:01:16]} 48. Kf3 {[%clk 0:00:02]}  Rxg2 {[%clk 0:01:17]} 49. Kxg2 {[%clk 0:00:03]}  Kb3 {[%clk 0:01:17]} 50. Bxa3 {[%clk 0:00:03]}  Kxa3 {[%clk 0:01:18]} 51. Kf3 {[%clk 0:00:04]}  Nd5 {[%clk 0:01:17]} 52. g4 {[%clk 0:00:04]}  c3 {[%clk 0:01:18]} 53. h5 {[%clk 0:00:03]}  gxh5 {[%clk 0:01:17]} 54. gxh5 {[%clk 0:00:04]} 0-1


[Site "https://www.chess.com"]

[Event "Titled Tuesday Blitz March 14 Late 2023"]
[White "Rostomyan, Mikayel"]
[Black "Kostiukov, Alexandr"]
[WhiteFideId "13313754"]
[BlackFideId "14108100"]
[WhiteElo "2009"]
[BlackElo "2202"]
[Result "1-0"]
[Round "01"]
[TimeControl "180+1"]
[Date "2023.03.14"]
[WhiteClock "0:00:23"]
[BlackClock "0:00:01"]

1. d4 {[%clk 0:02:58]}  g6 {[%clk 0:02:59]} 2. Nf3 {[%clk 0:02:56]}  Bg7 {[%clk 0:02:59]} 3. b3 {[%clk 0:02:56]}  Nf6 {[%clk 0:02:54]} 4. Bb2 {[%clk 0:02:57]}  O-O {[%clk 0:02:54]} 5. e3 {[%clk 0:02:56]}  d5 {[%clk 0:02:54]} 6. Be2 {[%clk 0:02:56]}  c5 {[%clk 0:02:54]} 7. O-O {[%clk 0:02:55]}  Nc6 {[%clk 0:02:48]} 8. dxc5 {[%clk 0:02:54]}  Qa5 {[%clk 0:02:47]} 9. a3 {[%clk 0:02:52]}  Qxc5 {[%clk 0:02:44]} 10. b4 {[%clk 0:02:53]}  Qb6 {[%clk 0:02:35]} 11. Nbd2 {[%clk 0:02:51]}  Rd8 {[%clk 0:02:30]} 12. Qc1 {[%clk 0:02:48]}  Bf5 {[%clk 0:02:22]} 13. c4 {[%clk 0:02:45]}  dxc4 {[%clk 0:02:11]} 14. Nxc4 {[%clk 0:02:46]}  Qc7 {[%clk 0:02:11]} 15. Nce5 {[%clk 0:02:31]}  Rac8 {[%clk 0:02:05]} 16. Nxc6 {[%clk 0:02:25]}  Qxc6 {[%clk 0:02:01]} 17. Qxc6 {[%clk 0:02:24]}  Rxc6 {[%clk 0:02:02]} 18. Nd4 {[%clk 0:02:24]}  Rcc8 {[%clk 0:01:51]} 19. Bf3 {[%clk 0:01:50]}  Be4 {[%clk 0:01:47]} 20. Rac1 {[%clk 0:01:33]}  a6 {[%clk 0:01:34]} 21. h3 {[%clk 0:01:26]}  e6 {[%clk 0:00:57]} 22. Nb3 {[%clk 0:01:10]}  Bxf3 {[%clk 0:00:47]} 23. gxf3 {[%clk 0:01:11]}  Nd5 {[%clk 0:00:26]} 24. Bxg7 {[%clk 0:01:10]}  Kxg7 {[%clk 0:00:27]} 25. Na5 {[%clk 0:01:06]}  b6 {[%clk 0:00:20]} 26. Nc6 {[%clk 0:01:04]}  Rd7 {[%clk 0:00:15]} 27. Nd4 {[%clk 0:00:50]}  Rdc7 {[%clk 0:00:14]} 28. Ra1 {[%clk 0:00:42]}  Nc3 {[%clk 0:00:13]} 29. f4 {[%clk 0:00:39]}  Kf6 {[%clk 0:00:12]} 30. a4 {[%clk 0:00:36]}  Rc4 {[%clk 0:00:11]} 31. b5 {[%clk 0:00:33]}  axb5 {[%clk 0:00:10]} 32. axb5 {[%clk 0:00:33]}  R8c5 {[%clk 0:00:09]} 33. Kg2 {[%clk 0:00:29]}  Nxb5 {[%clk 0:00:08]} 34. Nf3 {[%clk 0:00:26]}  Nc3 {[%clk 0:00:05]} 35. Ra7 {[%clk 0:00:26]}  Rc7 {[%clk 0:00:06]} 36. Ra8 {[%clk 0:00:26]}  Rc8 {[%clk 0:00:05]} 37. Ra6 {[%clk 0:00:25]}  b5 {[%clk 0:00:04]} 38. Ne5 {[%clk 0:00:26]}  R4c5 {[%clk 0:00:03]} 39. Nd7+ {[%clk 0:00:26]}  Kf5 {[%clk 0:00:03]} 40. Nxc5 {[%clk 0:00:26]}  Rxc5 {[%clk 0:00:03]} 41. Rc1 {[%clk 0:00:26]}  b4 {[%clk 0:00:02]} 42. Ra7 {[%clk 0:00:25]}  Kf6 {[%clk 0:00:01]} 43. Rb7 {[%clk 0:00:25]}  Rc4 {[%clk 0:00:01]} 44. Kf3 {[%clk 0:00:23]} 1-0


[Site "https://www.chess.com"]